bitfinex-derivatives/quotes_SOLF0:USTF0_20240930
["timestamp","ask_amount","ask_price","bid_price","bid_amount"]
[1727659633103,0.12502,158.75,158.73,7.75]
[1727659633613,0.12502,158.75,158.74,3.1493]
[1727659637211,0.12518,158.76,158.73,12.09]
[1727659637412,3.1483,158.79,158.7,4.06695658]
[1727659637413,3.27302,158.81,158.75,12.09]
[1727659637607,0.12502,158.81,158.75,12.09]
[1727659638408,3.1481,158.8,158.76,3.1488]
[1727659639828,3.1483,158.79,158.76,3.1488]
[1727659640234,0.12502,158.81,158.77,3.1486]
[1727659640422,3.1482,158.8,158.77,3.1486]
[1727659640730,0.12502,158.81,158.77,3.1485]
[1727659640930,3.27302,158.81,158.75,12.09]
[1727659641934,3.27302,158.81,158.78,3.1485]
[1727659643428,0.12502,158.81,158.75,12.09]
[1727659643627,0.12502,158.81,158.79,3.1481]
[1727659645320,0.12502,158.81,158.8,3.1481]
[1727659649828,1.3679,158.89,158.82,3.1477]
[1727659650139,1.3554,158.9,158.86,12.09]
[1727659650443,3.1466,158.88,158.86,12.09]
[1727659651233,1.2545,158.92,158.86,12.09]
[1727659651436,4.4003,158.92,158.88,15.2364]
[1727659651646,0.12502,158.93,158.9,12.09]
[1727659651942,0.12502,158.93,158.92,3.1457]
[1727659652140,0.12502,158.93,158.92,15.2357]
[1727659653638,0.12502,158.93,158.92,10.8757]
[1727659654430,3.1445,158.98,158.92,7.73]
[1727659654747,2.6321,159.01,158.97,7.73]
[1727659655041,1.3235,159.01,158.97,7.73]
[1727659655243,3.26942,158.99,158.97,7.73]
[1727659655635,0.12502,158.99,158.95,12.09]
[1727659655833,0.12502,158.99,158.97,12.09]
[1727659656247,0.12502,158.99,158.95,3.13452222]
[1727659656544,0.12502,158.99,158.95,12.09]
[1727659656729,0.12502,158.99,158.95,15.24906968]
[1727659657135,0.12502,158.99,158.96,3.1449]
[1727659657343,0.12502,158.99,158.95,12.09]
[1727659657941,0.12502,158.99,158.93,12.09]
[1727659659231,3.1447,158.97,158.93,15.2353]
[1727659660431,0.12502,158.99,158.9,12.09]
[1727659660635,1.3188,158.98,158.9,12.09]
[1727659661242,3.1448,158.97,158.9,12.09]
[1727659661635,3.1448,158.97,158.93,3.1455]
[1727659662036,4.4634,158.98,158.93,3.1455]
[1727659662840,4.4634,158.98,158.94,3.1453]
[1727659663145,3.26942,158.99,158.94,3.1453]
[1727659663450,3.26942,158.99,158.92,12.09]
[1727659664349,3.26942,158.99,158.95,3.1451]
[1727659665445,3.1445,158.98,158.94,3.1453]
[1727659666452,3.26942,158.99,158.94,3.1453]
[1727659666750,3.26942,158.99,158.92,12.09]
[1727659666959,3.26942,158.99,158.94,3.1453]
[1727659667153,3.26942,158.99,158.92,12.09]
[1727659667450,0.12502,158.99,158.95,12.09]
[1727659667845,0.12502,158.99,158.97,12.09]
[1727659668751,0.12502,158.99,158.98,3.1445]
[1727659673576,3.1435,159.04,158.97,12.09]
[1727659673856,3.1435,159.04,158.95,3.10687035]
[1727659673857,2.5202,159.07,158.99,12.09]
[1727659674059,3.1436,159.03,158.99,12.09]
[1727659674262,3.1436,159.03,158.99,3.1443]
[1727659674649,3.1437,159.02,158.99,3.1443]
[1727659674855,2.5202,159.07,158.99,3.1443]
[1727659675071,2.5202,159.07,158.99,12.09]
[1727659675247,2.5202,159.07,159.02,12.09]
[1727659675657,3.1431,159.06,159.02,15.2337]
[1727659676061,3.1431,159.06,159.03,3.1435]
[1727659676456,5.6631,159.07,159.03,3.1435]
[1727659677065,5.6631,159.07,158.99,3.19364829]
[1727659677066,2.5202,159.07,159.04,15.2333]
[1727659677457,2.5202,159.07,159.04,12.09]
[1727659677660,5.663,159.07,159.04,12.09]
[1727659678660,3.1426,159.08,159.04,15.2333]
[1727659679354,3.1424,159.09,159.04,15.2333]
[1727659679763,3.11537063,159.12,159.04,15.2333]
[1727659679961,3.11537063,159.12,159.02,12.09]
[1727659680559,3.143,159.06,159.02,15.2336]
[1727659680767,3.11537063,159.12,159.02,12.09]
[1727659681263,3.1428,159.07,159.03,3.1434]
[1727659681664,10.84537063,159.12,159.04,7.73]
[1727659681867,3.1424,159.09,159.04,10.8733]
[1727659682061,3.1424,159.09,159.08,7.73]
[1727659682760,3.1422,159.1,159.08,7.73]
[1727659683262,3.1419,159.12,159.09,7.73]
[1727659683471,1.2953,159.13,159.0,1.3368]
[1727659683671,1.2953,159.13,159.09,7.73]
[1727659683859,3.1422,159.1,159.09,7.73]
[1727659685460,3.26702,159.11,159.09,7.73]
[1727659686962,3.1423,159.1,159.07,7.73]
[1727659688361,3.1423,159.1,159.07,10.8727]
[1727659688563,3.26712,159.11,159.09,7.73]
[1727659689867,0.12502,159.11,159.1,7.73]
[1727659690172,0.12502,159.11,159.09,7.73]
[1727659691867,3.26712,159.11,159.09,7.73]
[1727659692072,0.12502,159.11,159.09,7.73]
[1727659692370,0.12502,159.11,159.1,7.73]
[1727659694066,0.12502,159.11,159.0,1.3368]
[1727659694273,7.73,159.1,159.04,7.73]
[1727659694667,7.73,159.1,159.02,3.1436]
[1727659694869,0.12502,159.11,158.99,3.31866829]
[1727659694870,1.3001,159.09,159.04,7.73]
[1727659695173,3.1429,159.07,159.04,7.73]
[1727659696578,3.1429,159.07,159.04,10.8733]
[1727659697278,3.1426,159.08,159.05,10.8731]
[1727659698479,1.3001,159.09,159.05,10.8731]
[1727659698480,4.4426,159.09,159.05,10.8731]
[1727659698776,3.1425,159.09,159.05,10.8731]
[1727659698977,3.1425,159.09,159.07,7.73]
[1727659701668,3.1426,159.08,159.03,3.1434]
[1727659701874,7.85502,159.11,159.05,7.73]
[1727659702778,7.73,159.08,158.99,3.31866829]
[1727659702985,1.2547,159.07,158.99,0.12502]
[1727659703281,3.1433,159.05,159.02,10.8736]
[1727659704082,1.2547,159.07,159.04,7.73]
[1727659704880,1.2547,159.07,159.06,7.73]
[1727659704881,4.3975,159.07,159.06,7.73]
[1727659706978,4.3975,159.07,159.05,7.73]
[1727659707179,3.1427,159.08,159.05,7.73]
[1727659708080,3.1427,159.08,159.05,10.8731]
[1727659708687,3.1427,159.08,159.06,7.73]
[1727659709577,0.12502,159.11,159.07,7.73]
[1727659709783,0.12502,159.11,159.09,7.73]
[1727659710479,3.1422,159.1,159.09,7.73]
[1727659710679,0.12502,159.11,159.09,7.73]
[1727659710883,0.12502,159.11,159.08,7.73]
[1727659711281,3.1423,159.1,159.08,7.73]
[1727659711587,0.12502,159.11,159.09,7.73]
[1727659711986,0.12502,159.11,159.01,0.8359]
[1727659711987,3.1422,159.1,159.08,7.73]
[1727659712176,0.12502,159.11,159.08,7.73]
[1727659712484,3.1423,159.1,159.08,7.73]
[1727659713790,3.1423,159.1,159.07,3.1426]
[1727659713982,3.1423,159.1,159.08,7.73]
[1727659715986,0.12502,159.11,159.1,3.1422]
[1727659719389,3.14622622,159.16,159.11,3.1419]
[1727659719390,3.1411,159.16,159.11,3.1419]
[1727659719697,3.1411,159.16,159.15,7.73]
[1727659721991,3.1452369,159.16,159.1,3.142]
[1727659722187,4.4668369,159.16,159.11,7.73]
[1727659722596,3.1413,159.15,159.13,7.73]
[1727659722899,4.4668369,159.16,159.13,7.73]
[1727659723088,4.4668369,159.16,159.11,3.1418]
[1727659723089,4.4668369,159.16,159.06,5.31724773]
[1727659723296,4.4668369,159.16,159.05,0.12502]
[1727659723297,9.028,159.15,159.09,7.73]
[1727659723790,3.142,159.11,159.1,7.73]
[1727659724292,9.48048399,159.15,159.1,7.73]
[1727659724493,9.48048399,159.15,159.11,7.73]
[1727659724799,1.298,159.15,159.11,7.73]
[1727659726198,3.1416,159.13,159.11,7.73]
[1727659727796,3.1414,159.14,159.11,10.8719]
[1727659728201,3.1414,159.14,159.13,7.73]
[1727659728505,3.142,159.11,159.08,10.8725]
[1727659728807,7.73,159.15,159.09,7.73]
[1727659729793,11.4360552,159.17,159.09,7.73]
[1727659730006,10.94564239,159.17,159.11,7.73]
[1727659730194,7.73,159.15,159.09,7.73]
[1727659730998,3.21564239,159.17,159.08,7.73]
[1727659730999,7.73,159.14,159.08,7.73]
[1727659731402,3.1418,159.12,159.09,3.1423]
[1727659732110,3.1416,159.13,159.1,10.8721]
[1727659733414,15.95505457,159.16,159.1,7.73]
[1727659733702,3.21564239,159.17,159.1,7.73]
[1727659733703,7.73,159.14,159.1,7.73]
[1727659734107,7.73,159.14,159.08,3.1425]
[1727659734411,7.73,159.14,159.09,7.73]
[1727659735411,3.1419,159.12,159.09,10.8723]
[1727659737509,7.73,159.13,159.07,7.73]
[1727659737717,9.0509,159.13,159.07,7.73]
[1727659739208,3.142,159.11,159.07,7.73]
[1727659739413,3.142,159.11,159.08,3.1425]
[1727659740028,3.142,159.11,159.09,7.73]
[1727659740404,3.1419,159.12,159.09,10.8722]
[1727659740605,1.3209,159.13,159.1,7.73]
[1727659741119,12.16278952,159.13,159.1,7.73]
[1727659741314,10.84188952,159.13,159.1,7.73]
[1727659741806,13.98358952,159.13,159.1,10.8721]
[1727659742115,3.1417,159.13,159.1,10.8721]
[1727659742316,10.84188952,159.12,159.1,7.73]
[1727659742508,3.1418,159.12,159.1,7.73]
[1727659744207,7.73,159.13,159.05,0.12502]
[1727659744407,9.0489,159.13,159.06,7.73]
[1727659744617,28.1376577,159.13,159.06,7.73]
[1727659744817,3.1421,159.11,159.08,3.1425]
[1727659745020,11.38896818,159.11,159.08,3.1425]
[1727659745217,11.38896818,159.11,159.06,7.73]
[1727659746021,11.38896818,159.11,159.07,3.1426]
[1727659746920,11.38896818,159.11,159.08,10.8725]
[1727659747121,8.24686818,159.11,159.08,10.8725]
[1727659747420,19.0887577,159.11,159.08,10.8725]
[1727659747623,8.24686818,159.11,159.08,10.8725]
[1727659747815,3.1418,159.12,159.08,10.8725]
[1727659749419,1.3189,159.13,159.08,10.8725]
[1727659749619,3.142,159.11,159.08,10.8725]
[1727659750714,3.142,159.11,159.05,0.12502]
[1727659750715,4.4605,159.13,159.1,10.8721]
[1727659750911,3.1416,159.13,159.11,7.73]
[1727659753929,3.1418,159.12,159.11,7.73]
[1727659755230,3.1418,159.12,159.1,7.73]
[1727659756424,7.73,159.15,159.1,10.8721]
[1727659756425,3.1417,159.13,159.1,10.8721]
[1727659763735,11.38856818,159.13,159.1,10.8721]
[1727659767835,7.73,159.12,159.08,3.1425]
[1727659768043,18.58204739,159.12,159.08,3.1425]
[1727659768337,8.24686818,159.11,159.07,7.73]
[1727659768535,19.09891557,159.11,159.07,7.73]
[1727659768742,3.1422,159.1,159.07,10.8726]
[1727659769031,3.1422,159.1,159.05,0.12502]
[1727659769032,7.73,159.08,159.05,0.12502]
[1727659769230,3.1429,159.06,159.05,0.12502]
[1727659769624,11.38976818,159.06,159.05,0.12502]
[1727659770239,3.1429,159.06,159.05,0.12502]
[1727659770423,11.40812564,159.08,159.05,7.85502]
[1727659770631,9.55222564,159.09,159.07,7.73]
[1727659770831,7.73,159.14,159.07,10.8726]
[1727659771034,7.73,159.12,159.05,0.12502]
[1727659771333,7.73,159.12,159.06,10.8729]
[1727659771534,3.1423,159.1,159.06,10.8729]
[1727659776239,3.1423,159.1,159.07,3.1427]
[1727659777840,3.1423,159.1,159.07,10.8727]
[1727659779438,11.40752564,159.11,159.08,3.1425]
[1727659780932,8.26552564,159.11,159.07,7.73]
[1727659781137,10.86744024,159.12,159.07,3.1427]
[1727659781138,3.1423,159.1,159.07,3.1427]
[1727659784349,8.26552564,159.11,159.06,7.73]
[1727659784650,3.142,159.11,159.08,3.1424]
[1727659784839,11.40752564,159.11,159.08,3.1424]
[1727659785540,11.40752564,159.11,159.06,7.73]
[1727659785541,3.1422,159.1,159.07,3.1427]
[1727659786252,8.26552564,159.12,159.08,7.73]
[1727659786541,3.1421,159.11,159.08,10.8725]
[1727659791947,3.1421,159.11,159.05,0.12502]
[1727659791948,3.1418,159.12,159.1,7.73]
[1727659792355,8.26552564,159.14,159.1,10.8721]
[1727659792556,3.1416,159.13,159.1,10.8721]
[1727659792851,8.26552564,159.13,159.1,10.8721]
[1727659793157,3.1416,159.13,159.1,10.8721]
[1727659793356,11.40712564,159.13,159.1,10.8721]
[1727659793661,3.1416,159.13,159.1,10.8721]
[1727659793857,11.40712564,159.13,159.1,10.8721]
[1727659794153,3.1416,159.13,159.1,10.8721]
[1727659794356,11.40712564,159.13,159.1,10.8721]
[1727659794545,8.26552564,159.14,159.1,10.8721]
[1727659794746,10.87755478,159.15,159.1,10.8721]
[1727659794747,3.1418,159.12,159.1,10.8721]
[1727659801660,3.1419,159.12,159.07,3.1426]
[1727659801861,7.73,159.12,159.06,7.73]
[1727659802260,10.87771575,159.13,159.09,7.73]
[1727659802564,12.15142564,159.16,159.09,7.73]
[1727659802565,8.26552564,159.12,159.09,7.73]
[1727659802865,11.40742564,159.12,159.09,10.8722]
[1727659803065,26.87324139,159.15,159.1,7.73]
[1727659803560,19.14324139,159.15,159.12,7.73]
[1727659803758,15.81202,159.35,159.06,3.4379]
[1727659803759,8.26552564,159.14,159.06,3.4379]
[1727659803959,0.12502,159.17,159.13,7.73]
[1727659804163,0.12502,159.23,159.16,7.73]
[1727659804461,0.12502,159.23,159.22,7.73]
[1727659804760,0.12502,159.23,159.14,2.6038]
[1727659805169,3.1402,159.21,159.17,10.8707]
[1727659805358,7.85502,159.23,159.17,7.73]
[1727659805667,3.1401,159.21,159.16,3.1409]
[1727659805871,7.85502,159.23,159.16,3.1409]
[1727659806164,7.73,159.2,159.14,7.73]
[1727659806352,6.21557193,159.19,159.15,3.1412]
[1727659806667,3.1404,159.19,159.15,10.8712]
[1727659806857,3.1408,159.18,159.14,3.1414]
[1727659807055,10.94936479,159.19,159.13,7.73]
[1727659807262,9.0749,159.19,159.13,7.73]
[1727659807573,1.3449,159.19,159.16,7.73]
[1727659808468,12.29268001,159.19,159.11,0.12502]
[1727659808675,9.0749,159.19,159.11,0.12502]
[1727659808862,7.73,159.17,159.12,7.73]
[1727659809168,3.1412,159.15,159.12,7.73]
[1727659809666,3.141,159.16,159.12,10.8718]
[1727659811059,3.1415,159.14,159.11,0.12502]
[1727659811364,10.84811766,159.17,159.11,0.12502]
[1727659811365,7.73,159.15,159.11,0.12502]
[1727659811566,7.73,159.14,159.11,0.12502]
[1727659811759,10.8718,159.12,159.11,0.12502]
[1727659812166,3.1418,159.12,159.11,0.12502]
[1727659812361,1.2578,159.13,159.11,0.12502]
[1727659812574,4.3995,159.13,159.11,0.12502]
[1727659812783,10.85179507,159.17,159.12,7.73]
[1727659813065,7.73,159.17,159.12,7.73]
[1727659813266,7.73,159.16,159.11,0.12502]
[1727659813473,7.73,159.13,159.11,0.12502]
[1727659813964,3.1418,159.12,159.11,0.12502]
[1727659814271,12.225,159.12,159.11,0.12502]
[1727659816188,12.225,159.12,159.05,7.85502]
[1727659816189,3.1429,159.06,159.05,0.12502]
[1727659816673,3.1425,159.09,159.05,3.26812]
[1727659816876,9.0832,159.12,159.07,7.73]
[1727659817280,3.1421,159.11,159.07,10.8727]
[1727659817774,3.1422,159.1,159.07,10.8727]
[1727659820376,9.0832,159.12,159.05,0.12502]
[1727659820582,3.1427,159.08,159.05,0.12502]
[1727659820781,1.3532,159.12,159.06,7.73]
[1727659820982,9.0832,159.12,159.08,7.73]
[1727659821673,3.1421,159.11,159.08,7.73]
[1727659821984,9.0832,159.12,159.08,7.73]
[1727659822568,3.142,159.11,159.08,7.73]
[1727659822779,1.3532,159.12,159.09,7.73]
[1727659822970,9.0212,159.16,159.11,7.73]
[1727659823376,7.73,159.14,159.1,7.73]
[1727659823581,7.73,159.13,159.07,7.73]
[1727659823978,3.1423,159.1,159.07,7.73]
[1727659824380,3.18269666,159.1,159.05,0.12502]
[1727659824681,3.1427,159.08,159.05,0.12502]
[1727659824871,7.73,159.09,159.05,0.12502]
[1727659825077,3.1426,159.08,159.06,7.73]
[1727659825578,3.1426,159.08,159.05,3.26812]
[1727659829077,3.1424,159.09,159.06,3.1429]
[1727659829281,1.2912,159.1,159.05,0.12502]
[1727659829675,3.1429,159.06,159.05,0.12502]
[1727659829875,3.14127626,159.09,159.05,0.12502]
[1727659830387,3.1429,159.07,159.05,0.12502]
[1727659830696,3.14127626,159.09,159.05,0.12502]
[1727659830882,12.08,159.08,159.05,0.12502]
[1727659831199,3.1429,159.06,159.05,0.12502]
[1727659835597,14.7276,159.1,159.05,0.12502]
[1727659835889,5.83622032,159.1,159.05,0.12502]
[1727659837294,3.1429,159.06,159.05,0.12502]
[1727659838703,5.83622032,159.1,159.05,0.12502]
[1727659838901,1.303,159.15,159.07,12.08]
[1727659839086,1.303,159.15,159.09,12.08]
[1727659839288,1.2953,159.16,159.09,12.08]
[1727659839489,1.2953,159.16,159.1,3.142]
[1727659839490,3.1414,159.14,159.1,3.142]
[1727659839688,1.2953,159.16,159.09,12.08]
[1727659840087,0.12502,159.17,159.14,15.2214]
[1727659840293,0.12502,159.17,159.14,12.08]
[1727659840597,0.12502,159.17,159.14,15.2213]
[1727659843698,0.12502,159.17,159.15,3.1412]
[1727659844288,0.12502,159.17,159.16,15.221]
[1727659845197,0.12502,159.17,159.15,3.1411]
[1727659845897,0.12502,159.17,159.14,3.1413]
[1727659846209,0.12502,159.17,159.13,12.08]
[1727659846399,3.26582,159.17,159.13,15.2214]
[1727659846590,3.26582,159.17,159.13,12.08]
[1727659846591,0.12502,159.17,159.13,12.08]
[1727659847189,0.12502,159.17,159.14,3.1413]
[1727659847393,0.12502,159.17,159.13,12.08]
[1727659848803,0.12502,159.17,159.14,3.1412]
[1727659849222,0.12502,159.17,159.08,0.8341]
[1727659849504,0.12502,159.17,159.1,12.08]
[1727659849709,3.141,159.16,159.12,3.1416]
[1727659850903,3.141,159.16,159.13,3.1416]
[1727659851101,0.12502,159.17,159.05,3.2746704]
[1727659851309,0.12502,159.17,159.09,3.1422]
[1727659851703,0.12502,159.17,159.07,12.08]
[1727659851902,3.1415,159.14,159.1,3.1421]
[1727659852098,0.12502,159.17,159.07,12.08]
[1727659852410,12.08,159.15,159.07,3.1426]
[1727659852612,0.12502,159.17,159.1,12.08]
[1727659852904,0.12502,159.17,159.12,12.08]
[1727659853108,0.12502,159.17,159.13,3.1414]
[1727659853109,3.26582,159.17,159.13,3.1414]
[1727659853300,0.12502,159.17,159.14,12.08]
[1727659853707,0.12502,159.17,159.15,3.1412]
[1727659853911,0.12502,159.17,159.14,12.08]
[1727659854209,0.12502,159.17,159.15,12.08]
[1727659854403,0.12502,159.17,159.16,3.141]
[1727659856514,1.2694,159.22,159.19,3.1404]
[1727659856515,3.1398,159.22,159.19,3.1404]
[1727659856905,0.12502,159.23,159.18,12.08]
[1727659857198,0.12502,159.23,159.19,3.1403]
[1727659857199,3.26482,159.23,159.19,3.1403]
[1727659857607,0.12502,159.23,159.2,3.14]
[1727659859409,0.12502,159.23,159.14,12.08]
[1727659859911,3.1404,159.2,159.16,3.1409]
[1727659860105,0.12502,159.23,159.14,12.08]
[1727659860306,12.20502,159.23,159.14,12.08]
[1727659860804,0.12502,159.23,159.16,12.08]
[1727659861013,3.1401,159.21,159.17,3.1407]
[1727659861313,0.12502,159.23,159.16,12.08]
[1727659861512,3.1404,159.19,159.16,15.221]
[1727659861702,12.20502,159.23,159.12,13.3149]
[1727659861908,12.08,159.21,159.1,12.08]
[1727659862108,2.5335,159.2,159.1,12.08]
[1727659862507,3.8555,159.2,159.13,3.1416]
[1727659862717,3.8555,159.2,159.12,12.08]
[1727659862718,3.08749751,159.19,159.12,12.08]
[1727659863117,1.3009,159.2,159.14,12.08]
[1727659863415,0.12502,159.23,159.14,12.08]
[1727659864319,3.1404,159.2,159.16,3.1408]
[1727659865817,0.12502,159.23,159.14,12.08]
[1727659866024,3.1399,159.22,159.18,3.1406]
[1727659866323,0.12502,159.23,159.2,12.08]
[1727659866513,0.12502,159.23,159.22,3.1398]
[1727659867021,0.12518,159.24,159.23,3.1396]
[1727659867809,0.12518,159.24,159.22,12.08]
[1727659868112,0.12518,159.24,159.2,12.08]
[1727659868419,0.12518,159.24,159.2,15.19369337]
[1727659868614,0.12518,159.24,159.22,3.1397]
[1727659869314,0.12518,159.24,159.2,15.19369337]
[1727659869315,0.12518,159.24,159.2,15.22]
[1727659869512,0.12518,159.24,159.2,3.14]
[1727659870020,3.26468,159.24,159.2,3.14]
[1727659870409,3.26468,159.24,159.21,3.14]
[1727659871420,3.26468,159.24,159.2,15.2201]
[1727659872018,0.12518,159.24,159.22,3.1398]
[1727659872215,0.12518,159.24,159.2,12.08]
[1727659873614,0.12518,159.24,159.21,3.1399]
[1727659874015,0.12518,159.24,159.2,12.08]
[1727659874317,0.12518,159.24,159.21,3.1399]
[1727659874513,0.12518,159.24,159.2,12.08]
[1727659874719,0.12518,159.24,159.23,3.1396]
[1727659877131,3.26352,159.29,159.22,12.08]
[1727659877315,3.26352,159.29,159.25,12.08]
[1727659877715,0.12502,159.29,159.25,12.08]
[1727659878129,0.12502,159.29,159.28,3.1386]
[1727659878814,1.2977,159.34,159.27,12.08]
[1727659879011,1.2924,159.36,159.3,3.1381]
[1727659879224,2.5563,159.4,159.32,12.08]
[1727659879417,1.2977,159.4,159.34,15.2174]
[1727659879620,1.2977,159.4,159.34,12.08]
[1727659880222,1.2977,159.4,159.27,1.2388]
[1727659880223,1.2977,159.4,159.33,3.1375]
[1727659880723,1.2977,159.4,159.32,12.08]
[1727659881230,3.1371,159.36,159.32,12.08]
[1727659881424,3.07316204,159.38,159.29,12.08]
[1727659881626,3.07316204,159.38,159.29,3.1383]
[1727659881627,3.1377,159.33,159.29,3.1383]
[1727659882225,4.41176204,159.38,159.27,13.3188]
[1727659882425,4.41176204,159.38,159.28,3.1386]
[1727659882426,3.1379,159.32,159.28,3.1386]
[1727659883024,13.4293,159.37,159.25,12.08]
[1727659883224,12.20502,159.35,159.23,12.20502]
[1727659883825,3.1383,159.3,159.25,12.08]
[1727659884227,3.1383,159.3,159.27,3.1388]
[1727659884530,3.1383,159.3,159.25,12.08]
[1727659885323,3.1383,159.3,159.26,3.1389]
[1727659885526,12.08,159.32,159.23,12.20502]
[1727659885825,1.3057,159.31,159.23,0.12502]
[1727659886026,3.14278513,159.3,159.23,0.12502]
[1727659886426,3.1386,159.28,159.23,0.12502]
[1727659886621,2.5451,159.31,159.23,0.12502]
[1727659886835,3.1391,159.26,159.23,0.12502]
[1727659887834,3.12676813,159.3,159.23,3.26462]
[1727659888036,2.5451,159.31,159.23,3.26462]
[1727659888736,3.1386,159.28,159.23,3.26462]
[1727659888937,3.1386,159.28,159.24,3.1393]
[1727659889433,3.1388,159.27,159.24,3.1393]
[1727659890025,3.17984405,159.3,159.23,0.12502]
[1727659890026,3.1394,159.24,159.23,0.12502]
[1727659890630,3.1394,159.24,159.17,0.12502]
[1727659890826,22.45817218,159.27,159.17,0.12502]
[1727659890827,1.2536,159.23,159.17,0.12502]
[1727659891235,3.15817218,159.27,159.17,0.12502]
[1727659891435,3.1393,159.25,159.18,19.3]
[1727659891637,1.2536,159.28,159.2,19.3]
[1727659891846,1.2536,159.28,159.22,3.1396]
[1727659891847,3.1391,159.26,159.22,3.1396]
[1727659892234,1.2536,159.28,159.2,19.3]
[1727659894945,3.139,159.27,159.2,19.3]
[1727659895645,3.139,159.27,159.22,3.1398]
[1727659898443,3.139,159.27,159.23,3.1396]
[1727659899044,1.2536,159.28,159.24,3.1393]
[1727659899045,4.3923,159.28,159.24,3.1393]
[1727659899340,0.12502,159.29,159.2,19.3]
[1727659900243,0.12502,159.29,159.19,1.3401]
[1727659900642,3.1396,159.24,159.2,3.1401]
[1727659900840,0.12502,159.29,159.18,20.6499]
[1727659901038,0.12502,159.29,159.18,1.3499]
[1727659901439,3.1404,159.2,159.18,1.3499]
[1727659901636,3.1404,159.2,159.17,0.12502]
[1727659901837,0.12502,159.29,159.17,0.12502]
[1727659902145,3.14,159.21,159.18,3.1405]
[1727659902843,3.14,159.22,159.18,3.1405]
[1727659903443,3.1402,159.2,159.17,3.26582]
[1727659903640,0.12502,159.29,159.17,3.26582]
[1727659903837,0.12502,159.29,159.17,0.12502]
[1727659904738,3.14,159.22,159.18,3.1406]
[1727659905130,0.12502,159.29,159.18,3.1406]
[1727659905540,19.3,159.26,159.17,0.12502]
[1727659905844,1.3099,159.25,159.17,0.12502]
[1727659906444,1.3601,159.24,159.17,0.12502]
[1727659906840,1.2335,159.23,159.17,0.12502]
[1727659907041,3.1403,159.2,159.17,0.12502]
[1727659907343,1.2335,159.23,159.17,3.26562]
[1727659908647,3.1402,159.2,159.17,3.26562]
[1727659910437,1.2335,159.23,159.17,0.12502]
[1727659910833,1.3099,159.25,159.17,0.12502]
[1727659911036,1.2342,159.28,159.17,19.42502]
[1727659911242,1.2342,159.28,159.2,19.3]
[1727659911746,0.12502,159.29,159.2,19.3]
[1727659911945,0.12502,159.29,159.21,2.555]
[1727659912649,3.1388,159.28,159.24,3.1393]
[1727659912855,0.12502,159.29,159.22,19.3]
[1727659913145,0.12502,159.29,159.23,3.2118552]
[1727659913337,0.12502,159.29,159.22,19.3]
[1727659913541,3.1392,159.26,159.22,3.1396]
[1727659913750,0.12502,159.29,159.21,2.555]
[1727659914454,3.1389,159.27,159.23,3.1395]
[1727659914946,0.12502,159.29,159.23,3.1395]
[1727659916155,3.1389,159.27,159.23,3.1395]
[1727659917142,3.26352,159.29,159.22,19.3]
[1727659918151,3.26352,159.29,159.23,3.20453549]
[1727659919156,3.26352,159.29,159.25,3.1391]
[1727659919848,3.26352,159.29,159.26,3.139]